[Event "Israeli Championship 2022"]
[Site "Yosiah Arad"]
[Date "2022.12.13"]
[Round "9.2"]
[White "Bronstein, Or"]
[Black "Boruchovsky, Avital"]
[Result "1/2-1/2"]
[ECO "D30"]
[WhiteElo "2442"]
[BlackElo "2552"]
[Annotator "TA"]
[PlyCount "96"]
[EventDate "2022.12.05"]
[EventType "swiss"]
[EventCountry "ISR"]
[SourceTitle "playchess.com"]
[Source "ChessBase"]
[SourceQuality "1"]
[TimeControl "40/5400+30:1800+30"]

{[%evp 13,96,14,27,0,12,21,22,6,5,-7,0,7,16,19,62,0,1,0,12,0,0,0,32,33,30,30,23,7,7,7,7,0,0,0,0,0,0,0,0,-4,0,-5,-4,-11,0,0,0,0,0,0,0,0,0,0,0,0,0,0,0,0,0,0,0,0,0,-12,-12,-12,-12,-12,-12,-12,-12,-12,-12,-12,-12,-12,-2,-12,-10,-12,0,-12,-12]} 1. d4 {[%emt 0:00:05]} Nf6 {[%emt 0:00:07]} 2. c4 {[%emt 0:00:03]} e6 {[%emt 0:00:04]} 3. Nf3 {[%emt 0:00:11]} d5 {[%emt 0:00:07]} 4. g3 {[%emt 0:00:05]} Bb4+ {[%emt 0:00:05]} 5. Bd2 {[%emt 0:00:05]} Bd6 {[%emt 0:00:04]} 6. Qc2 {[%emt 0:01:25]} O-O {[%emt 0:04:08]} 7. Bg2 {[%emt 0:00:37]} c6 {[%emt 0:03:00]} 8. Nc3 {[%emt 0:00:31] D30: Queen's Gambit Declined: Systems without Nc3.} Nbd7 {[%emt 0:00:21]} 9. b3 {[%emt 0:00:31]} dxc4 {[%emt 0:00:10]} 10. bxc4 {[%emt 0:00:02]} e5 {[%emt 0:00:07]} 11. O-O {[%emt 0:00:11]} exd4 {[%emt 0:02:26]} 12. Nxd4 {[%emt 0:00:09]} Re8 {[%emt 0:00:04]} (12... Nb6 {is more complex.} 13. Ne4 Be5 14. Bc3 Nxe4 15. Bxe4 f5) 13. Rad1 {[%emt 0:02:13] [#]} Nc5 $146 {[%emt 0:04:28][%cal Od6g3] [#]} ({Predecessor:} 13... Bf8 14. h3 h6 15. e4 Nc5 16. Bf4 Qa5 17. Nb3 Qb6 18. Rb1 Nfd7 19. Rfd1 Qb4 {½-½ (40) Barber,P (2354)-Vivante Sowter,J (2123) ICCF email 2021}) 14. Nf5 {[%emt 0:26:54]} (14. Nxc6 $1 $14 bxc6 15. Bf4) 14... Bxf5 $11 {[%emt 0:02:36]} 15. Qxf5 {[%emt 0:00:02]} Qe7 {[%emt 0:00:08]} 16. Be3 {[%emt 0:22:03][%cal Od1d6] aiming for Rxd6! A strong pair of Bishops.} Be5 {[%emt 0:13:45]} 17. Qc2 {[%emt 0:00:02]} Ng4 {[%emt 0:09:10] [#] Hoping for ...Nxe3.} 18. Bxc5 {[%emt 0:06:10]} Qxc5 {[%emt 0:00:37]} 19. Ne4 {[%emt 0:00:02]} Qe7 {[%emt 0:01:06]} 20. h3 {[%emt 0:01:59]} (20. Qb3 {with more complications.} Rad8 21. c5 Nf6 22. Nd6) 20... Nf6 {[%emt 0:00:10] The position is equal.} 21. Nxf6+ {[%emt 0:00:17]} Bxf6 {[%emt 0:00:38]} 22. Bf3 {[%emt 0:00:25]} Rad8 {[%emt 0:02:25]} 23. Rxd8 {[%emt 0:04:01]} Rxd8 {[%emt 0:01:12]} 24. Rd1 {[%emt 0:00:06]} Rxd1+ {[%emt 0:06:11]} 25. Qxd1 {[%emt 0:00:39][%mdl 4096] Endgame KQB-KQB} g6 {[%emt 0:00:06]} 26. Kg2 {[%emt 0:01:40]} h5 {[%emt 0:00:26]} 27. h4 {[%emt 0:00:05]} Kg7 {[%emt 0:00:06]} 28. Qd3 {[%emt 0:00:38]} a5 {[%emt 0:03:17]} 29. Qb3 {[%emt 0:13:11]} Qc7 {[%emt 0:05:46]} 30. Be4 {[%emt 0:01:08]} Bd4 {[%emt 0:01:35]} 31. e3 {[%emt 0:03:07]} Bc5 {[%emt 0:00:57]} 32. Qc3+ {[%emt 0:00:23]} Kg8 {[%emt 0:00:09]} 33. Bc2 {[%emt 0:01:57]} Bb4 {[%emt 0:01:22]} 34. Qd4 {[%emt 0:00:52]} Qe7 {[%emt 0:02:12]} 35. Qe4 {[%emt 0:03:17]} Qxe4+ {[%emt 0:01:08]} 36. Bxe4 {[%emt 0:00:02] KB-KB} a4 {[%emt 0:00:06]} 37. Bc2 {[%emt 0:05:23]} a3 {[%emt 0:00:16]} 38. f4 {[%emt 0:01:06]} Be1 {[%emt 0:06:01]} 39. f5 {[%emt 0:00:35]} Kg7 {[%emt 0:02:16]} 40. fxg6 {[%emt 0:00:03]} fxg6 {[%emt 0:00:05]} 41. Bd3 {[%emt 0:30:42]} Kf6 {[%emt 0:30:44]} 42. Kf3 {[%emt 0:03:11]} Bb4 {[%emt 0:01:44]} 43. Bf1 {[%emt 0:00:46]} Be7 {[%emt 0:03:42]} 44. Kf4 {[%emt 0:01:11]} Bf8 {[%emt 0:00:48]} 45. Kf3 {[%emt 0:01:27]} Bh6 {[%emt 0:00:22]} 46. Bd3 {[%emt 0:01:10]} Kf7 {[%emt 0:01:09]} 47. Kf2 {[%emt 0:00:00]} Kf6 {[%emt 0:00:00]} 48. Kf3 {[%emt 0:00:00]} g5 {[%emt 0:00:00] Weighted Error Value: White=0.06 (flawless) /Black=0.05 (flawless)} 1/2-1/2

[Event "Israeli Championship 2022"]
[Site "Yosiah Arad"]
[Date "2022.12.13"]
[Round "9.3"]
[White "Kochavi, Ori"]
[Black "Dvoirys, Semen I."]
[Result "1-0"]
[ECO "B90"]
[WhiteElo "2326"]
[BlackElo "2461"]
[Annotator "TA"]
[PlyCount "65"]
[EventDate "2022.12.05"]
[EventType "swiss"]
[EventCountry "ISR"]
[SourceTitle "playchess.com"]
[Source "ChessBase"]
[SourceQuality "1"]
[TimeControl "40/5400+30:1800+30"]

{[%evp 15,65,16,58,57,42,52,39,43,47,48,51,60,86,83,131,132,131,118,135,123,117,128,107,91,77,61,81,56,112,114,114,105,116,116,150,113,169,146,373,380,395,404,385,343,421,356,689,706,668,591,576,571]} 1. e4 {[%emt 0:00:37] Ftacnik,Lubomir} c5 {[%emt 0:00:13]} 2. Nf3 {[%emt 0:00:02]} d6 {[%emt 0:00:11]} 3. d4 {[%emt 0:00:01]} cxd4 {[%emt 0:00:05]} 4. Nxd4 {[%emt 0:00:02]} Nf6 {[%emt 0:00:13]} 5. Nc3 {[%emt 0:00:03]} a6 {[%emt 0:00:12]} 6. Be3 {[%emt 0:00:15]} e5 {[%emt 0:00:13]} 7. Nf3 {[%emt 0:00:04]} Qc7 {[%emt 0:08:09]} 8. a4 {[%emt 0:00:03]} b6 {[%emt 0:01:43]} 9. Nd5 {[%emt 0:00:45] B90: Sicilian Najdorf: Unusual White 6th moves, 6 Be3 Ng4 and 6 Be3 e5.} Nxd5 {[%emt 0:00:29]} 10. Qxd5 {[%emt 0:01:06]} Nc6 {[%emt 0:07:30]} 11. Ng5 {[%emt 0:00:07][%cal Og5f7] White is slightly better.} Rb8 $1 {[%emt 0:01:28]} (11... Nb4 $2 12. Qxa8 Be7 13. Bxb6 $1 $18 {[%mdl 512]}) 12. Bc4 {[%emt 0:04:34][%cal Rd5f7]} Nd8 {[%emt 0:00:30] Threatens to win with ...f6.} 13. Qd3 {[%emt 0:00:32]} h6 {[%emt 0:17:13]} 14. Nf3 {[%emt 0:00:34]} Ra8 {[%emt 0:00:20] [#]} ({Better is} 14... Be7) 15. O-O $146 {[%emt 0:02:25]} ({Predecessor:} 15. Nd2 Ne6 16. Bd5 Rb8 17. Qc4 Nc5 18. b4 b5 19. axb5 axb5 20. Qc3 Ne6 21. Qxc7 Nxc7 {1-0 (36) Carlsen,M (2570)-Amonatov,F (2572) Khanty-Mansiysk 2005 CBM 111 [Ftacnik,Lubomir]}) 15... Be7 {[%emt 0:02:43]} 16. Ra3 {[%emt 0:10:47]} O-O {[%emt 0:05:55] [#]} 17. Rc3 $1 {[%emt 0:10:00][%cal Oc4f7] And now Bxf7+! would win.} Qd7 {[%emt 0:00:50]} 18. Bxb6 {[%emt 0:08:47] Hoping for Bd5.} Ne6 {[%emt 0:01:18]} 19. Be3 {[%emt 0:02:53]} (19. a5 {keeps more tension.} Nf4 20. Qd2 Qg4 21. Ne1) 19... Qxa4 {[%emt 0:12:08]} 20. Ra3 {[%emt 0:00:37]} (20. Rb3 {is more complex.} Nc7 21. Rb6 Rd8 22. Bb3) 20... Qd7 {[%emt 0:00:42]} 21. Bxa6 {[%emt 0:00:10] White is much more active. The black rooks are badly placed.} Rb8 {[%emt 0:03:22]} ({Black should try} 21... Qc7 $1 $14) 22. Bc4 $36 {[%emt 0:15:17][%cal Ba6c4,Bc4b3,Bb3d5][%mdl 2080] Keeping Black busy.} Rxb2 {[%emt 0:02:57] [#]} 23. Bb3 $1 {[%emt 0:00:07]} Qc6 {[%emt 0:00:13]} 24. Nd2 {[%emt 0:01:07]} (24. Ra7 {feels hotter.} Bg5 25. Nxg5 Nxg5 26. f3) 24... Bb7 {[%emt 0:03:56]} 25. Rfa1 {[%emt 0:11:18]} Rc8 {[%emt 0:07:34]} (25... Bg5 $16 {was necessary.}) 26. Ra7 {[%emt 0:01:43] Strongly threatening Bd5.} Bf8 $2 {[%emt 0:05:58] A mistake that costs the game.} (26... Bg5 $16 {was called for.}) 27. Bd5 $18 {[%emt 0:08:33]} Qc7 {[%emt 0:02:38]} 28. Nc4 {[%emt 0:00:22]} Rb4 {[%emt 0:00:05]} 29. Na5 {[%emt 0:04:36]} Nd8 {[%emt 0:01:14]} 30. Nxb7 {[%emt 0:00:18]} Nxb7 {[%emt 0:00:05]} (30... Rb8 31. h3 R4xb7 32. Bxb7 Rxb7) 31. Qa3 {[%emt 0:00:30] White is clearly winning.} Rb5 {[%emt 0:01:13]} 32. Qa6 {[%emt 0:02:34]} Rb2 {[%emt 0:01:04]} 33. Rxb7 {[%emt 0:00:13] Weighted Error Value: White=0.15 (very precise) /Black=0.42} ({Weaker is} 33. Bxb7 Rb8 $16) 1-0

[Event "Israeli Championship 2022"]
[Site "Yosiah Arad"]
[Date "2022.12.13"]
[Round "9.4"]
[White "Sokolovsky, Yahli"]
[Black "Levin, Guy"]
[Result "1-0"]
[ECO "B27"]
[WhiteElo "2414"]
[BlackElo "2382"]
[Annotator "TA"]
[PlyCount "139"]
[EventDate "2022.12.05"]
[EventType "swiss"]
[EventCountry "ISR"]
[SourceTitle "playchess.com"]
[Source "ChessBase"]
[SourceQuality "1"]
[TimeControl "40/5400+30:1800+30"]

{[%evp 9,139,16,13,15,32,35,57,25,32,0,17,18,158,166,234,204,375,144,399,361,342,311,303,75,71,79,321,103,225,93,187,42,24,32,32,29,58,44,110,1,400,395,399,399,29991,553,557,544,531,517,487,0,0,0,0,0,0,0,0,-115,0,0,0,0,0,0,0,0,0,0,0,-18,0,-31,0,0,0,0,0,0,0,0,0,0,0,0,1,1,4,0,0,0,0,0,0,0,0,0,0,0,0,0,0,0,0,0,195,95,1409,337,1663,1554,5422,5142,29978,29979,29979,29980,29982,29982,29983,29984,29984,29985,29985,29986,29986,29987,29993,29994,29994,29991]} 1. e4 {[%emt 0:00:03]} c5 {[%emt 0:00:01]} 2. Nf3 {[%emt 0:00:07]} b6 {[%emt 0:00:05]} 3. Bc4 {[%emt 0:05:38]} Bb7 {[%emt 0:02:09]} 4. O-O {[%emt 0:00:18]} e6 {[%emt 0:00:13]} 5. Re1 {[%emt 0:01:28]} Nf6 {[%emt 0:02:16]} 6. Nc3 {[%emt 0:06:08] [#] B27: Sicilian: 2 Nf3, unusual Black 2nd moves.} a6 $146 {[%emt 0:09:09]} ({Predecessor:} 6... Nc6 7. e5 d5 8. Bf1 Nd7 9. d3 Be7 10. Bf4 g5 11. Bg3 g4 12. Nd2 h5 {0-1 (52) Olape,B (2273)-Jobava,B (2713) Tromsoe 2014}) 7. d4 {[%emt 0:15:20]} b5 {[%emt 0:07:19] [#] Against e5} 8. Bd5 {[%emt 0:03:29] White is slightly better.} Nc6 $1 {[%emt 0:02:43]} 9. Bg5 {[%emt 0:09:51][%cal Oe4e5]} cxd4 {[%emt 0:22:04]} (9... h6 $5 {[%cal Rh6g5]} 10. Bxf6 gxf6 $11) 10. Nxd4 {[%emt 0:03:07][%cal Oe4e5]} b4 {[%emt 0:17:14] Against e5} (10... Be7 $11 {keeps the balance.}) 11. e5 $1 $16 {[%emt 0:11:25] White is more active.} bxc3 {[%emt 0:02:53]} (11... h6 $142) 12. exf6 $18 {[%emt 0:00:34]} Qc7 $2 {[%emt 0:19:19] [#]} (12... cxb2 13. Rb1 Qc7) 13. bxc3 $2 {[%emt 0:20:47]} (13. Bxe6 $1 $18 {[%mdl 512] and White stays clearly on top.} O-O-O 14. Bd5 (14. Bxf7 cxb2 15. Rb1 Nxd4 $16) (14. fxg7 Bxg7 15. Bxd8 Rxd8 $14)) 13... g6 $2 {[%emt 0:02:26][%mdl 8192] [#]} (13... Nxd4 $16 14. Qxd4 Rg8) 14. Nxe6 $1 {[%emt 0:08:56][%mdl 512]} dxe6 {[%emt 0:02:46] [#]} 15. Bxe6 {[%emt 0:00:19][%mdl 576]} Ne5 {[%emt 0:01:32]} (15... fxe6 $2 16. Rxe6+ $18) 16. Bb3 {[%emt 0:08:11]} (16. Bh3 $18 {[%cal Oe1e5] Intending Rxe5+! and mate.} Rd8 17. Qe2) 16... Bd6 $16 {[%emt 0:00:45]} 17. Ba4+ {[%emt 0:00:19]} Kf8 $2 {[%emt 0:00:42]} (17... Bc6 $16 {was necessary.}) 18. Bh6+ {[%emt 0:00:26]} Kg8 {[%emt 0:00:01]} 19. Rb1 {[%emt 0:00:22]} (19. Qd4 $1 $18 {Rad1 is the strong threat.} Nc6 20. Qc4) 19... Rd8 {[%emt 0:02:18]} (19... Bc6 $16 {might work better.} 20. Qd4 (20. Bxc6 Nxc6 21. g3 Bf8 $14) 20... Bxa4 21. Qxa4 Qc8) 20. Rxb7 {[%emt 0:02:33]} Qxb7 $14 {[%emt 0:00:02]} 21. Rxe5 {[%emt 0:00:03][%mdl 64] Pin} Bf8 $1 {[%emt 0:00:20]} 22. Bd2 {[%emt 0:01:01]} (22. Qxd8 Qb1+) 22... h5 {[%emt 0:01:51] White must now prevent ...Bh6.} 23. Qe1 {[%emt 0:00:31]} (23. h4 $5 {[%cal Rd1e1]}) 23... Qb6 {[%emt 0:01:34]} (23... h4 $14) 24. h4 {[%emt 0:00:38]} (24. Be3 $16 Qxf6 25. Bd4) 24... Bd6 $2 {[%emt 0:00:34][%mdl 8192] [#]} (24... Qxf6 $11 25. Re4 (25. Bg5 Qxe5 26. Qxe5 Rd1+ 27. Kh2 Bd6 $17) 25... Bc5) 25. Re7 $1 $18 {[%emt 0:00:38][%mdl 512]} Bc5 {[%emt 0:01:06][%cal Oc5f2]} (25... Rf8 26. Qe4) 26. Bb3 $1 {[%emt 0:00:35]} (26. Re8+ Kh7 27. Re2 Rd5 $15) 26... Bxe7 {[%emt 0:00:01]} (26... Rh7 $18 27. Re8+ Bf8) 27. fxe7 {[%emt 0:00:39]} (27. Bxf7+ $142 Kh7 28. Qxe7 Qxf6 29. Qxf6 Rhg8 30. Bxg8+ Kxg8 31. Qxd8+ Kf7 32. Qd7+ Kf6 33. Bg5+ Ke5 34. f4+ Ke4 35. Qe6#) 27... Re8 {[%emt 0:00:01]} 28. Qe5 {[%emt 0:00:26] Against Qd6} (28. Ba4 Kg7 $11) 28... Kh7 {[%emt 0:00:51]} 29. Be3 {[%emt 0:00:35] Against f6} (29. Bxf7 Qb1+ 30. Kh2 Qb8 31. Qxb8 Rxb8 $16) 29... Qb7 {[%emt 0:00:44]} 30. Bd4 $2 {[%emt 0:00:30] This pair of bishops is nice.} ({Weaker is} 30. Bxf7 Qb1+ 31. Kh2 Qb8 32. Qxb8 Rxb8 $18) (30. Bc5 $18 Qd7 31. Bxf7) 30... f6 $1 $11 {[%emt 0:00:05]} 31. Qxf6 {[%emt 0:00:19][%csl Gd4][%cal Rf6g7] Chess con chili.} Qxe7 {[%emt 0:00:01]} 32. Qxe7+ {[%emt 0:00:35]} ({Don't play} 32. Qxa6 Qxh4 33. Qf1 Rhf8 $17) 32... Rxe7 {[%emt 0:00:01]} 33. Bxh8 {[%emt 0:00:07]} Kxh8 {[%emt 0:03:54][%mdl 4096] Endgame KR-KB} 34. f4 {[%emt 0:00:46]} (34. g3 $11) 34... Rc7 {[%emt 0:00:00]} ({Black should play} 34... Re4 $1 $17 35. g3 Re3) 35. c4 $1 {[%emt 0:00:07]} Rf7 {[%emt 0:00:00]} 36. g3 {[%emt 0:00:04]} Kg7 {[%emt 0:00:00]} 37. Kf2 {[%emt 0:00:03] Hoping for Ke3.} Re7 {[%emt 0:00:00]} 38. c3 {[%emt 0:00:38]} Kf6 {[%emt 0:00:00]} 39. Bc2 {[%emt 0:01:37]} Rc7 {[%emt 0:00:00]} 40. Bb3 {[%emt 0:00:15]} Re7 {[%emt 0:00:00][%mdl 1024] Black has compensation.} 41. Kf3 {[%emt 0:05:02]} Re8 {[%emt 0:01:25]} 42. Kf2 {[%emt 0:07:53]} Re7 {[%emt 0:00:30]} 43. Bc2 {[%emt 0:00:20]} Re8 {[%emt 0:04:46]} 44. a3 {[%emt 0:07:03]} Rc8 {[%emt 0:05:45]} 45. Bd3 {[%emt 0:00:07]} Rb8 {[%emt 0:04:21]} 46. Ke3 {[%emt 0:00:14]} Rb3 {[%emt 0:01:31]} 47. Kd4 {[%emt 0:00:14]} Rxa3 {[%emt 0:00:20]} 48. c5 {[%emt 0:00:05][%cal Od3g6] aiming for Bxg6!} Ra4+ {[%emt 0:00:29]} 49. Kd5 {[%emt 0:02:11] And now Kd6 would win.} Ra3 {[%emt 0:00:20]} 50. Kc4 {[%emt 0:02:17]} Ra4+ {[%emt 0:02:16]} 51. Kb3 {[%emt 0:00:13]} Ra1 {[%emt 0:00:04]} 52. c6 {[%emt 0:00:16] c7 would kill now.} Ke7 {[%emt 0:00:37] Against c7} 53. Bxg6 {[%emt 0:00:35]} Rg1 {[%emt 0:00:04]} 54. f5 {[%emt 0:01:29] Strongly threatening f6+.} Kd6 {[%emt 0:00:40]} 55. f6 {[%emt 0:01:28]} Rxg3 {[%emt 0:02:31]} 56. f7 {[%emt 0:00:58]} (56. Bxh5 $5 Rg8 $8 57. c4 $11) 56... Rf3 {[%emt 0:00:03] Against f8Q+} 57. Bxh5 {[%emt 0:00:16]} Rf5 {[%emt 0:01:15] [#]} (57... Rf6 $1 $11) 58. Bg6 {[%emt 0:06:15]} (58. c4 $1 $18 {is the precise move to win.}) 58... Rb5+ $2 {[%emt 0:00:01][%mdl 8192]} (58... Rf6 $16) 59. Ka4 $2 {[%emt 0:00:16]} (59. Kc4 Rb8 60. Be4) 59... Rb8 {[%emt 0:00:03] [#] Inhibits f8Q+.} (59... Ke7 60. c4 Rc5) 60. Bh7 $1 $18 {[%emt 0:00:59]} Rh8 {[%emt 0:01:35] [#] Prevents h5.} 61. h5 $1 {[%emt 0:00:28][%cal Bh4h5,Bh5h6][%mdl 32]} Ke7 {[%emt 0:00:57]} (61... Rc8 62. h6) 62. Bf5 {[%emt 0:00:28] White mates.} Kd6 {[%emt 0:00:43]} 63. Bd7 {[%emt 0:00:33]} Ke7 {[%emt 0:00:53]} 64. h6 {[%emt 0:00:26]} Kd6 {[%emt 0:00:47]} 65. Be8 {[%emt 0:00:25]} Kc7 {[%emt 0:00:07]} 66. Ka5 {[%emt 0:00:12]} Rf8 {[%emt 0:00:30]} 67. Kxa6 {[%emt 0:00:09]} Rh8 {[%emt 0:00:02]} 68. Kb5 {[%emt 0:00:18]} Rxh6 {[%emt 0:00:14]} 69. f8=Q {[%emt 0:00:42]} Rh5+ {[%emt 0:00:02]} 70. Qc5 {[%emt 0:00:21] Weighted Error Value: White=0.69/Black=0.51} 1-0

[Event "Israeli Championship 2022"]
[Site "Yosiah Arad"]
[Date "2022.12.13"]
[Round "9.5"]
[White "Kobo, Ori"]
[Black "Yaniv, Yuval"]
[Result "1-0"]
[ECO "A46"]
[WhiteElo "2554"]
[BlackElo "2343"]
[Annotator "TA"]
[PlyCount "131"]
[EventDate "2022.12.05"]
[EventType "swiss"]
[EventCountry "ISR"]
[SourceTitle "playchess.com"]
[Source "ChessBase"]
[SourceQuality "1"]
[TimeControl "40/5400+30:1800+30"]

{[%evp 9,131,4,24,8,17,17,8,8,18,5,25,35,37,47,38,35,49,53,32,37,54,20,15,16,18,27,35,18,19,13,13,16,27,18,14,19,13,13,77,70,139,121,176,185,392,384,388,379,371,358,366,366,366,366,370,352,305,297,344,344,344,349,344,344,344,0,335,316,366,283,283,283,271,267,283,276,307,306,307,299,360,354,356,335,355,350,345,334,456,433,433,433,433,433,433,433,523,433,551,522,480,433,400,355,346,352,512,504,29977,29978,29978,29979,29979,29980,29972,29971,29991,29992,29992,29993,29994,29995,29996,854]} 1. d4 {[%emt 0:00:14]} d5 {[%emt 0:00:23]} 2. Nf3 {[%emt 0:01:30]} Nf6 {[%emt 0:00:37]} 3. g3 {[%emt 0:00:05]} e6 {[%emt 0:02:28]} 4. Bg2 {[%emt 0:00:09]} b5 {[%emt 0:04:08]} 5. O-O {[%emt 0:00:50]} Be7 {[%emt 0:00:35]} 6. a4 {[%emt 0:00:34] A46: 1 d4 Nf6 2 Nf3 e6: Torre, London and Colle Systems.} b4 {[%emt 0:00:09]} 7. c4 {[%emt 0:03:56]} bxc3 {[%emt 0:00:17]} 8. bxc3 {[%emt 0:01:26][%cal Oc3c4] The position is equal.} O-O {[%emt 0:01:44]} 9. Ne5 {[%emt 0:00:14]} c5 {[%emt 0:04:31]} 10. c4 {[%emt 0:04:09] [#]} Bb7 $146 {[%emt 0:01:33]} ({Predecessor:} 10... cxd4 11. Qxd4 Nfd7 12. cxd5 Nxe5 13. Qxe5 Bf6 14. Qe3 Bb7 15. Nc3 exd5 16. Qd2 Nd7 {½-½ (41) Ochoa de la Rosa,M (2409)-Cabrera Gonzalez,M (2250) Santa Clara 2022}) 11. Nc3 {[%emt 0:08:53]} cxd4 {[%emt 0:06:47]} 12. Qxd4 {[%emt 0:00:07]} Nc6 {[%emt 0:00:09]} 13. Nxc6 {[%emt 0:00:28]} Bxc6 {[%emt 0:00:06]} 14. Bf4 {[%emt 0:16:07]} Qa5 {[%emt 0:22:49]} 15. cxd5 {[%emt 0:06:40]} (15. Nb5 {simplifies} Qb6 16. Be3 Qxd4 17. Bxd4 a5 18. Rfd1) 15... Nxd5 {[%emt 0:01:21]} 16. Nxd5 {[%emt 0:00:18]} Bxd5 {[%emt 0:00:39]} 17. Bxd5 {[%emt 0:02:29]} (17. Bd2 {with more complications.} Qa6 18. Bxd5 Rfd8 19. Bc3) 17... Rad8 {[%emt 0:04:39][%cal Ba8d8,Bd8d5,Bd5c5,Bc5c4][%mdl 96] Pin} 18. Rab1 {[%emt 0:11:45] And now Rb5 would win.} Rxd5 {[%emt 0:01:54]} 19. Qc4 {[%emt 0:00:12]} Rc5 {[%emt 0:06:12]} 20. Qe4 {[%emt 0:05:01]} Rfc8 {[%emt 0:00:34]} 21. Rb7 {[%emt 0:03:22]} (21. Rfd1 {simplifies} Rc4 22. Rd4 Rxd4 23. Qxd4 Bc5 24. Qc4) 21... Bf8 {[%emt 0:02:26]} 22. Rd1 $36 {[%emt 0:06:07][%mdl 2048] next Rdd7 is good for White. White has some pressure.} Rc4 {[%emt 0:03:50]} 23. Qf3 {[%emt 0:00:13] Bd6 is the strong threat.} Qxa4 {[%emt 0:34:09] [#]} (23... Rxa4 $11 24. Kg2 Qf5) 24. Rdd7 $1 $16 {[%emt 0:00:53] aiming for Be5. White is more active. Black is on the road to losing.} Qa1+ {[%emt 0:00:00]} (24... Rc3 $14 25. Be3 f5) 25. Kg2 {[%emt 0:00:09]} Qf6 {[%emt 0:00:00]} (25... a5 $16) 26. Rxa7 $18 {[%emt 0:03:30]} Bb4 $2 {[%emt 0:00:00]} (26... Rc2 {was necessary.} 27. h4 Qc3 28. Rxf7 Qxf3+ 29. Kxf3 (29. exf3 Rd8 $16) 29... R2c5) 27. Rxf7 {[%emt 0:09:25]} Qxf7 {[%emt 0:00:00]} 28. Rxf7 {[%emt 0:00:03]} Kxf7 {[%emt 0:00:00]} 29. Be5+ {[%emt 0:00:34]} Kg8 {[%emt 0:00:00]} 30. Qb7 {[%emt 0:00:11][%csl Ge5][%cal Rb7g7]} Bf8 {[%emt 0:00:00]} 31. Qd7 {[%emt 0:00:09] Against Re8} R8c6 {[%emt 0:00:00]} 32. Qe8 {[%emt 0:02:25]} Ra6 {[%emt 0:00:00]} 33. h4 {[%emt 0:05:36]} Re4 {[%emt 0:00:00]} 34. Qc8 {[%emt 0:01:20] Threatens to win with Bxg7.} Rea4 {[%emt 0:00:00]} 35. Bc3 {[%emt 0:01:35]} Rd6 {[%emt 0:00:00]} 36. Qe8 {[%emt 0:01:22]} Rda6 {[%emt 0:00:00]} 37. Qc8 $2 {[%emt 0:01:40]} (37. h5 $18) 37... Kf7 $2 {[%emt 0:00:00][%mdl 8192]} (37... Rd6 $1 $11 38. h5 h6) 38. Qd7+ {[%emt 0:02:29]} Kg8 {[%emt 0:00:00]} 39. Qe8 {[%emt 0:01:08]} Rc4 {[%emt 0:00:00]} 40. Bb2 {[%emt 0:00:51][%cal Ob2a3]} Rc7 {[%emt 0:01:35]} 41. Be5 {[%emt 0:06:04]} Rca7 {[%emt 0:03:14]} 42. h5 {[%emt 0:04:14]} Ra8 {[%emt 0:02:40]} 43. Qd7 {[%emt 0:00:09]} R8a7 {[%emt 0:00:10]} 44. Qc8 {[%emt 0:00:10]} Kf7 {[%emt 0:00:45]} 45. Bd4 {[%emt 0:04:03]} Ra8 {[%emt 0:01:00]} 46. Qb7+ {[%emt 0:00:20]} Kg8 {[%emt 0:00:24]} 47. g4 {[%emt 0:02:30][%cal Bg3g4,Bg4g5][%mdl 32]} Ra5 {[%emt 0:01:46]} 48. f4 {[%emt 0:01:52][%cal Oh5h6] Hoping for h6!} Re8 {[%emt 0:00:42] Inhibits h6.} 49. Qc6 {[%emt 0:02:19] Inhibits Rd5.} Raa8 {[%emt 0:01:18]} 50. g5 {[%emt 0:00:29]} Rac8 {[%emt 0:01:27]} 51. Qe4 {[%emt 0:00:51]} Rcd8 {[%emt 0:00:45]} 52. Kf3 {[%emt 0:01:58]} Rd5 {[%emt 0:01:22]} 53. Kg4 {[%emt 0:01:15]} Bd6 {[%emt 0:02:05]} 54. e3 {[%emt 0:00:37]} Bf8 {[%emt 0:00:23]} 55. Qc2 {[%emt 0:00:56]} Rdd8 {[%emt 0:00:27]} 56. Qg2 {[%emt 0:12:34]} Rd5 {[%emt 0:00:18]} 57. Qa2 {[%emt 0:00:00]} Bc5 {[%emt 0:01:13]} (57... Rdd8 $142 58. Qa7 Re7) 58. Qa4 {[%emt 0:00:00]} Re7 {[%emt 0:07:26]} (58... Red8 $18 59. Bxc5 Rxc5) 59. g6 {[%emt 0:00:00] White mates.} hxg6 {[%emt 0:06:27]} 60. hxg6 {[%emt 0:00:00]} Kf8 {[%emt 0:00:05]} 61. Qa8+ {[%emt 0:00:00]} Re8 {[%emt 0:00:05] [#]} 62. Bxg7+ $1 {[%emt 0:00:00][%mdl 512]} Kxg7 {[%emt 0:00:11]} (62... Ke7 63. Bf6+) 63. Qxe8 {[%emt 0:00:00]} Rf5 {[%emt 0:00:07]} 64. Qd7+ {[%emt 0:00:00]} Kxg6 {[%emt 0:00:41]} 65. Qxe6+ {[%emt 0:00:00]} Rf6 {[%emt 0:00:08]} 66. Qg8+ {[%emt 0:00:00] Weighted Error Value: White=0.17 (very precise) /Black=0.39} 1-0